Cogmind - Beta 14 @@@ ROGUE MODE // 2024.08.11 @ 23:54:40 Player: Olafz Result: Self-destructed Performance ------------- Evolutions (2) 1000 Regions Visited (3) 600 Robots Destroyed (0) 0 Value Destroyed (0) 0 Prototype IDs (0) 0 Alien Tech Used (0) 0 Bonus (470) 470 TOTAL SCORE: 2070 Bonus ------- Pacifist 470 Cogmind --------- Core Integrity 374/550 Matter 75/300 Energy 99/100 System Corruption 0% Temperature Cool (0) Movement Core (50) Location -8/Materials Parts ------- > --- POWER (1) -------- (None) > --- PROPULSION (2) --- (None) > --- UTILITY (6) ------ Sensor Array Improved Signal Interpreter > --- WEAPON (2) ------- (None) > --- INVENTORY (5) ---- (None) Peak State ------------ > --- POWER ------------ (None) > --- PROPULSION ------- Cesium-ion Thruster > --- UTILITY ---------- Structural Scanner Sensor Array Improved Signal Interpreter > --- WEAPON ----------- (None) > --- INVENTORY -------- (None) [Rating: 8] Favorites ----------- Power None Propulsion Cesium-ion Thruster Flight Unit Cesium-ion Thruster Utility Structural Scanner Device Structural Scanner Processor Improved Signal Interpreter Weapon None Build | -11 -10 -9 -8 ------- Run | Yrd Mat Mat Mat Slots Evolved 4 | . . 2 2 Power . | . . . . Propulsion . | . . . . Utility 4 | . . 2 2 Weapon . | . . . . Parts Attached 5 | . 2 . 3 Power . | . . . . Engine . | . . . . Core . | . . . . Reactor . | . . . . Propulsion 1 | . . . 1 Treads . | . . . . Leg . | . . . . Wheel . | . . . . Hover . | . . . . Flight 1 | . . . 1 Utility 4 | . 2 . 2 Device 3 | . 2 . 1 Storage . | . . . . Processor 1 | . . . 1 Hackware . | . . . . Protection . | . . . . Artifact . | . . . . Weapon . | . . . . Energy Gun . | . . . . Energy Cannon . | . . . . Ballistic Gun . | . . . . Ballistic Cannon . | . . . . Launcher . | . . . . Special Weapon . | . . . . Impact Weapon . | . . . . Slashing Weapon . | . . . . Piercing Weapon . | . . . . Special Melee Weapon . | . . . . Unidentified Prototypes . | . . . . Parts Lost 3 | . . 1 2 Power . | . . . . Propulsion 1 | . . . 1 Utility 2 | . . 1 1 Weapon . | . . . . Highest Loss Streak 2 | . . 1 2 To Critical Strikes . | . . . . Average Slot Usage (%) 14 | . 4 15 20 Flight 1 | . . . 6 Device 12 | . 4 15 11 Peak Build Rating 8 | . 2 2 8 Average Rating 1 | . . 1 4 On Entrance . | . . 2 1 Naked Turns 24 | . 24 . . Heaviest Build 2 | . 2 2 2 Greatest Support 5 | 3 3 3 5 Greatest Overweight (x) . | . . . . Average Overweight (x) . | . . . . Largest Inventory Capacity 5 | 5 5 5 5 Average Capacity 5 | 5 5 5 5 Most Carried 1 | . 1 1 1 Average Carried . | . . 1 . Final Capacity 5 | 5 5 5 5 Final Carried 1 | . 1 1 . Class Distribution -------------------- 100% | Mutant Dominant Class ---------------- Mutant | -10/Materials Mutant | -9/Materials Mutant | -8/Materials Resources | -11 -10 -9 -8 ----------- Run | Yrd Mat Mat Mat Matter Collected . | . . . . Remotely . | . . . . Salvage Created . | . . . . Parts . | . . . . Haulers Intercepted . | . . . . Recyclers Shooed . | . . . . Parts Field Recycled . | . . . . Retrieved Matter . | . . . . Parts Self-Destructed . | . . . . Prevented . | . . . . Kills | -11 -10 -9 -8 ------- Run | Yrd Mat Mat Mat Combat Hostiles Destroyed . | . . . . Classes Destroyed . | . . . . Best Kill Streak . | . . . . Combat Bots Only . | . . . . Max Kills in Single Turn . | . . . . Gunslinging . | . . . . Exploded . | . . . . Melee . | . . . . Uniques/NPCs Destroyed . | . . . . Combat | -11 -10 -9 -8 -------- Run | Yrd Mat Mat Mat Hostile Shots Fired 84 | . 5 65 14 Missed 35 | . 1 28 6 Damage Taken 647 | . 48 370 229 Core 571 | . 45 350 176 Absorbed by Shields . | . . . . Core Remaining (%) 64 | 100 82 12 . Volleys Fired . | . . . . Largest . | . . . . Hottest . | . . . . Shots Fired . | . . . . Gun . | . . . . Cannon . | . . . . Launcher . | . . . . Special . | . . . . Kinetic . | . . . . Thermal . | . . . . Explosive . | . . . . Electromagnetic . | . . . . Robot Hit Streak . | . . . . Robot Miss Streak . | . . . . Penetration Max . | . . . . Secondary Targets . | . . . . Shots Hit Robots . | . . . . Core Hits . | . . . . Critical Kills . | . . . . Critical Parts Destroyed . | . . . . Critical Strikes . | . . . . Melee Attacks . | . . . . Impact . | . . . . Slashing . | . . . . Piercing . | . . . . Sneak Attacks . | . . . . Combat Hostiles . | . . . . Follow-up Attacks . | . . . . Damage Inflicted 16 | . 6 10 . Guns . | . . . . Cannons . | . . . . Explosions . | . . . . Melee . | . . . . Ramming 16 | . 6 10 . Kinetic . | . . . . Thermal . | . . . . Explosive . | . . . . Electromagnetic . | . . . . Impact . | . . . . Slashing . | . . . . Piercing . | . . . . Highest Corruption 3 | . 2 3 . Average Corruption 2 | . 2 3 . Corruption Purged . | . . . . Corruption Blocked . | . . . . Overload Shots . | . . . . Overflow Damage . | . . . . Projectiles . | . . . . Explosions . | . . . . Melee . | . . . . Knockbacks . | . . . . Impact . | . . . . Kinetic . | . . . . Secondary . | . . . . Self-Inflicted Damage 7 | . 3 4 . Shots . | . . . . Rammed 3 | . 1 2 . Targets Rammed 3 | . 1 2 . Kicked . | . . . . Crushed . | . . . . Highest Temperature . | . . . . Average Temperature . | . . . . Received Heat Transfer 123 | . 24 81 18 Siege Activations . | . . . . Robots Corrupted . | . . . . Combat Hostiles . | . . . . Parts Fried . | . . . . Impact Corruptions . | . . . . Robots Melted . | . . . . Combat Hostiles . | . . . . Parts Melted . | . . . . Heat Transferred . | . . . . Parts Sabotaged . | . . . . Parts Stolen . | . . . . Parts Stripped . | . . . . Power Chain Reactions . | . . . . Alert | -11 -10 -9 -8 ------- Run | Yrd Mat Mat Mat Peak Influence 220 | . 15 220 137 Initial 92 | . . 5 92 Average 54 | . 7 48 117 Maximum Alert Level 1 | . . 1 . Low Security (%) 97 | 100 100 95 100 Level 1 2 | . . 4 . Level 2 . | . . . . Level 3 . | . . . . Level 4 . | . . . . Level 5 . | . . . . High Security . | . . . . Max Security . | . . . . Squads Dispatched 3 | . 1 1 1 Investigation . | . . . . Extermination . | . . . . Reinforcement 3 | . 1 1 1 Assault . | . . . . Garrison . | . . . . Intercept . | . . . . Searches Triggered . | . . . . Construction Impeded . | . . . . Haulers Reinforced . | . . . . Active Scanning Responses . | . . . . Cargo Convoy Interrupts . | . . . . Stealth | -11 -10 -9 -8 --------- Run | Yrd Mat Mat Mat Distress Signals 2 | . . 2 . Communications Jammed . | . . . . Distress Signals . | . . . . Times Spotted 31 | . 5 21 5 Peak Tracking Total 14 | . 4 14 4 Tactical Retreats 2 | . . 2 . Traps | -11 -10 -9 -8 ------- Run | Yrd Mat Mat Mat Traps Triggered 1 | . 1 . . Indirectly . | . . . . Trap Hack Attempts . | . . . . Triggered . | . . . . Disarmed . | . . . . Reprogrammed . | . . . . Reused . | . . . . Traps Extracted . | . . . . Installed . | . . . . Triggered . | . . . . Machines | -11 -10 -9 -8 ---------- Run | Yrd Mat Mat Mat Machines Disabled . | . . . . Max in Single Turn . | . . . . Machines Repaired . | . . . . Machines Dismantled . | . . . . Machines Sabotaged . | . . . . Overloaded Fab Kills . | . . . . Hacking | -11 -10 -9 -8 --------- Run | Yrd Mat Mat Mat Machines Accessed . | . . . . Terminals . | . . . . Fabricators . | . . . . Repair Stations . | . . . . Recycling Units . | . . . . Scanalyzers . | . . . . Garrison Access . | . . . . Total Hacks . | . . . . Successful . | . . . . Failed . | . . . . Catastrophic . | . . . . Database Lockouts . | . . . . Manual . | . . . . Terminals . | . . . . Fabricators . | . . . . Repair Stations . | . . . . Recycling Units . | . . . . Scanalyzers . | . . . . Garrison Access . | . . . . Terminal Hacks . | . . . . Fabricator Hacks . | . . . . Repair Station Hacks . | . . . . Recycling Unit Hacks . | . . . . Scanalyzer . | . . . . Garrison Access Hacks . | . . . . Unauthorized Hacks . | . . . . Terminals . | . . . . Fabricators . | . . . . Repair Stations . | . . . . Recycling Units . | . . . . Scanalyzers . | . . . . Garrison Access . | . . . . Data Cores Recovered . | . . . . Used . | . . . . Hacking Detections . | . . . . Full Trace Events . | . . . . Feedback Events . | . . . . Feedback Blocked . | . . . . Robot Schematics Acquired . | . . . . Robots Built . | . . . . Authchips . | . . . . Time . | . . . . Total Robot Build Rating . | . . . . Part Schematics Acquired . | . . . . Parts Built . | . . . . Authchips . | . . . . Time . | . . . . Total Part Build Rating . | . . . . Parts Repaired . | . . . . Time . | . . . . Parts Recycled . | . . . . Recycled Matter . | . . . . Retrieved Matter . | . . . . Retrieved Components . | . . . . Parts Scanalyzed . | . . . . Part Schematics Acquired . | . . . . Parts Damaged . | . . . . Bothacking | -11 -10 -9 -8 ------------ Run | Yrd Mat Mat Mat Used RIF Installer . | . . . . Robots Hacked . | . . . . Non-combat . | . . . . Combat . | . . . . Robot Hacks Applied . | . . . . Relay Couplers Released . | . . . . Fabnet Peak Effective % . | . . . . Robots Rewired . | . . . . Allies Hacked . | . . . . Hacks Repelled . | . . . . Allies | -11 -10 -9 -8 -------- Run | Yrd Mat Mat Mat Total Allies . | . . . . Largest Group . | . . . . Highest-Rated Group . | . . . . Highest-Rated Ally . | . . . . Total Orders . | . . . . Ally Attacks . | . . . . Total Damage . | . . . . Kills . | . . . . Allies Corrupted . | . . . . Allies Melted . | . . . . Intel | -11 -10 -9 -8 ------- Run | Yrd Mat Mat Mat Robot Analysis Total . | . . . . Derelict Logs Recovered . | . . . . Drone Launches . | . . . . Drone Recoveries . | . . . . Exploration | -11 -10 -9 -8 ------------- Run | Yrd Mat Mat Mat Turns Passed 175 | 9 36 86 44 Spaces Moved 350 | 18 62 168 102 Core 276 | 18 62 168 28 Treads . | . . . . Legs . | . . . . Wheels . | . . . . Hover . | . . . . Flight 74 | . . . 74 Fastest Speed 35 | 50 50 50 35 Average Speed 46 | 50 50 50 39 Slowest Speed 50 | 50 50 50 50 Overloaded Moves . | . . . . Propulsion Burnouts . | . . . . Robots Hopped 2 | . . . 2 Cave-ins Triggered . | . . . . Exploration Rate (%) 16 | 2 17 32 14 Regions Visited 3 Branch Regions . Pre-discovered Areas . | . . . . Known Exits Taken . | . . . . Unknown Exits Taken 3 | 1 1 1 . Scrap Searched . | . . . . Spaces Dug . | . . . . Terrain Destroyed . | . . . . Melee . | . . . . Projectile . | . . . . AOE . | . . . . Terrain Rammed . | . . . . Walls Destroyed . | . . . . Machines Disabled . | . . . . Actions | -11 -10 -9 -8 --------- Run | Yrd Mat Mat Mat Total 354 | 17 65 169 103 Wait . | . . . . Move 344 | 17 62 167 98 Hop 2 | . . . 2 Pick Up 1 | . 1 . . Fast Attach 4 | . 2 . 2 Attach 1 | . . . 1 Detach . | . . . . Swap . | . . . . Drop . | . . . . Fire . | . . . . Melee . | . . . . Ram 2 | . . 2 . Kick . | . . . . Crush . | . . . . Escape Stasis . | . . . . Rewire . | . . . . Trap . | . . . . Miscellaneous . | . . . . Route ------- -11/Scrapyard -10/Materials -9/Materials (discovered 2 exits: [*Mat] / [*Min]) -8/Materials (discovered 1 exit: [*Sto]) History --------- Turn | Location | Event 3 | -11/Scrapyard | Discovered new exit (range 15) 10 | -11/Scrapyard | Entered Materials 40 | -10/Materials | Discovered new exit (range 9) 46 | -10/Materials | Entered another Materials area 46 | -9/Materials | Evolved 2 slots: Utility x2 88 | -9/Materials | Core integrity fell below 50% 89 | -9/Materials | Discovered new exit (range 11) 128 | -9/Materials | Discovered new exit (range 10) 132 | -9/Materials | Entered another Materials area 132 | -8/Materials | Evolved 2 slots: Utility x2 132 | -8/Materials | Discovered new exit (range 15) 176 | -8/Materials | Self-destructed Last Messages --------------- K-01 Serf collects debris. ALERT: Hostiles spotted, dispatching reinforcements to Terminal M005. K-01 Serf collects debris. W-16 Scout sends out distress signal. K-01 Serf collects debris. EXIT=FOUND PARAMETERS=UTILITY+2 LOCATION=UNKNOWN GOAL=ESCAPE EXIT=FOUND O-16 Technician: "IFF HANDSHAKE FAILED. SECURING TERMINAL." ALERT: Hostiles spotted, dispatching reinforcements to Terminal M003. Acquired Cesium-ion Thruster. Penetrated by Slug. Acquired Imp. Signal Interpreter. T-07 Excavator destroyed. Cesium-ion Thruster destroyed. Structural Scanner destroyed. Knocked back. U-05 Engineer system corrupted by crushing effect. Map ----- +----------------------------------------------------+ | ## """ # ##???????????????????????????????? | | ## """ # ##???????????????????????????????? | | ## """ + ###??????????????????????????????? | | ## # ## ??????????????????????????????? | | ## # + ??????????????????????????????? | | #####+### ## ??????????????????????????????? | | #/ # ## ??????????????????????????????? | | # " # ##???????????????????????????????? | | # """ # ##???????????????????????????????? | | # "" # # ???????????????????????????????? | | # """ # # ?????? ???????????????????????? | | # "" + # ????## ##?????????????????????? | | # """ # # ????## ##?????????????????????? | | # """ ### # ????# #?????????????????????? | | # """ ### # ????? ??????????????????????? | | # " ### # ????? ]??????????????????????? | | # ### # ????# #?????????????????????? | | ########### # ????## a##?????????????????????? | | ########### # ????##Y # ?????????????????????? | | ########### # ????## + ?????????????????????? | | # #### # ## # ?????????????????????? | | # # ######## # ?????????????????????? | | # [// # # =# Y# ?????????????????????? | | # [/ # # "" # #########??????????????? | | # // + + ""S +% ;########??????????????? | | # # # "" #u@# ##??????????????? | | #####+## # ! #%!#""" ##??????????????? | | ##### + #|!#""" ##??????????????? | | ???##+##+######## ## #""" ##??????????????? | | ???# ########## Y/ ##??????????????? | | ??## """" ##???##### # | ##??????????????? | | ??## """" ##########H #####+###??????????????? | | ??## """" ######### # ######??????????????? | | ??## #### #t#####???????????????? | | ??## #### ##??????????????????? | | ??##############+## # ##??????????????????? | | ???######## #########??????????????????? | | ?????????## """ #########??????????????????? | | ?????????## = """ ##?????????????????????????? | | ?????????## """ ##?????????????????????????? | | ?????????## ##?????????????????????????? | | ?????????###########?????????????????????????? | | | | | | | | | | | | | | | | | +----------------------------------------------------+ Best States ------------- Heat Dissipation 31 Energy Generation 5 Energy Capacity 100 Matter Stores 100 Matter Capacity 300 Sight Range 16 Robot Scan Range 14 Terrain Scan Density 10 Evasion (%) 63 Item Schematics ----------------- None Robot Schematics ------------------ None Fabricated ------------ Nothing Alien Tech Used ----------------- None Achievements -------------- None Challenges ------------ None Game ------ Seed BoltPoweredWand Manual? 0 Play Time 00:03:41 Cumulative 195.4 hours Start 2024.08.11 @ 23:51:42 End 2024.08.11 @ 23:54:40 Sessions 1 Manual Loads 0 Difficulty Rogue Special Mode None Game No. 349 Rogue 347 Adventurer 2 Explorer 0 Win Type - Total 9 Types 8/0/0/1/0/0/0/0/0 Lore% 69 Gallery% 64 Achievement% 55 Wizard Run 0 Options --------- Layout 0 ASCII 0 Keyboard 1 Movement Numpad Keybinds 1 Fullscreen 2 Font 18/SmallcapsGlow Map View 76x50 Zoom Use 0% Tactical HUD 1 Map Filters NONE Filters NONE Steam 1 RUN: ffd73ec7-422f-4bf4-8387-f4eae0b416dd